bitfinex-derivatives/quotes_SOLF0:USTF0_20250528
["timestamp","ask_amount","ask_price","bid_price","bid_amount"]
[1748430037631,33.33813242,174.03,173.94,4.27813242]
[1748430037835,33.33813242,174.03,173.96,4.27813242]
[1748430038740,0.04265668,174.01,173.98,0.04184807]
[1748430050652,0.04265668,174.01,173.98,2.07804807]
[1748430056757,0.04265668,174.01,173.98,0.04184807]
[1748430060756,3.8782,174.1,173.98,0.04184807]
[1748430060959,29.02,174.11,174.0,6.68434547]
[1748430061152,29.02,174.12,174.01,34.9777]
[1748430061755,0.03650974,174.08,174.05,0.04387075]
[1748430061950,0.03650974,174.08,174.05,4.31784844]
[1748430063756,0.03650974,174.08,174.05,33.33784844]
[1748430063958,0.03650974,174.08,174.05,29.06387075]
[1748430065259,3.9,174.16,174.05,29.06387075]
[1748430065461,3.9,174.16,174.05,35.69703341]
[1748430065759,3.9,174.16,174.05,29.02]
[1748430066155,3.9,174.16,174.09,0.0434489]
[1748430070061,6.67703341,174.14,174.09,0.0434489]
[1748430076463,3.9,174.16,174.09,0.0434489]
[1748430076766,10.57703341,174.16,174.09,0.0434489]
[1748430078971,6.67703341,174.1,174.03,28.96]
[1748430079372,6.67703341,174.1,174.0,525.16]
[1748430079767,12.70773341,174.1,174.0,525.16]
[1748430080073,0.0434489,174.07,174.03,0.04282919]
[1748430086266,29.0234489,174.07,173.97,4.1037]
[1748430086465,6.67703341,174.01,173.93,28.98]
[1748430086669,6.67703341,174.01,173.89,4.0832]
[1748430086974,6.67703341,174.01,173.9,28.98]
[1748430087377,0.03857884,173.97,173.94,0.0422678]
[1748430099586,35.65703341,174.02,173.94,0.0422678]
[1748430100585,0.04388549,174.0,173.94,0.0422678]
[1748430119893,4.28041569,173.97,173.94,0.0422678]
[1748430122490,4.28041569,173.99,173.94,0.0422678]
[1748430123086,0.04388549,174.0,173.94,0.0422678]
[1748430123288,4.32430118,174.0,173.94,0.0422678]
[1748430123484,4.32430118,174.0,173.94,29.0022678]
[1748430123684,0.04388549,174.0,173.96,4.28041569]
[1748430123892,4.28041569,174.05,173.98,4.28041569]
[1748430124991,4.28041569,174.05,174.0,0.04036776]
[1748430125881,525.38,174.07,174.0,0.04036776]
[1748430130894,28.96,174.07,174.0,0.04036776]
[1748430131194,28.92,174.1,174.0,0.04036776]
[1748430131398,28.92,174.1,174.03,0.04215885]
[1748430149707,28.92,174.1,174.03,5.88055885]
[1748430150105,28.92,174.13,174.03,5.88055885]
[1748430150302,28.92,174.13,174.06,0.04135163]
[1748430152508,28.92,174.13,174.06,28.96135163]
[1748430153210,529.1871,174.16,174.06,28.96135163]
[1748430159015,6.6825823,174.14,174.06,28.96135163]
[1748430165616,529.1871,174.16,174.06,28.96135163]
[1748430165821,6.6825823,174.15,174.06,28.96135163]
[1748430170516,524.83487907,174.16,174.06,28.96135163]
[1748430170715,28.88,174.16,174.06,28.96135163]
[1748430179422,32.2753,174.19,174.06,35.64393393]
[1748430179622,32.2753,174.19,174.11,0.04044844]
[1748430185917,4.27068674,174.18,174.11,0.04044844]
[1748430186423,32.2753,174.19,174.12,4.27068674]
[1748430186629,3.4153,174.19,174.14,4.27068674]
[1748430186827,3.4153,174.19,174.15,0.04024922]
[1748430205352,6.67041152,174.18,174.15,0.04024922]
[1748430205544,3.4153,174.19,174.15,0.04024922]
[1748430231156,10.08571152,174.19,174.15,0.04024922]
[1748430231864,4.2720436,174.16,174.15,0.04024922]
[1748430232064,3.4153,174.19,174.15,0.04024922]
[1748430232265,4.2720436,174.17,174.15,0.04024922]
[1748430233862,3.4153,174.19,174.15,0.04024922]
[1748430240070,6.67393876,174.17,174.15,0.04024922]
[1748430240272,35.47393876,174.17,174.15,0.04024922]
[1748430240669,35.47393876,174.17,174.05,28.8]
[1748430241667,0.04024015,174.13,174.09,0.04039371]
[1748430253983,4.31291626,174.13,174.09,0.04039371]
[1748430260084,0.04024015,174.13,174.09,0.04039371]
[1748430260887,0.04024015,174.13,174.09,28.84039371]
[1748430263184,4.27267611,174.18,174.1,4.27267611]
[1748430263791,4.27267611,174.16,174.1,4.27267611]
[1748430263986,32.2153,174.19,174.1,4.27267611]
[1748430264289,4.27267611,174.16,174.13,0.04086867]
[1748430269398,4.27267611,174.17,174.13,0.04086867]
[1748430272902,32.2153,174.19,174.13,0.04086867]
[1748430273097,4.27267611,174.18,174.13,0.04086867]
[1748430274294,32.2153,174.19,174.13,0.04086867]
[1748430274490,4.27267611,174.18,174.13,0.04086867]
[1748430282301,3.4153,174.19,174.13,0.04086867]
[1748430282708,3.4153,174.19,174.14,4.27267611]
[1748430282900,3.4153,174.19,174.13,33.11354478]
[1748430283102,3.4153,174.19,174.13,28.84086867]
[1748430284504,4.27267611,174.17,174.13,28.84086867]
[1748430284904,7.68797611,174.19,174.13,28.84086867]
[1748430285307,3.4153,174.19,174.13,28.84086867]
[1748430285509,7.68797611,174.19,174.13,28.84086867]
[1748430289118,4.27267611,174.17,174.13,28.84086867]
[1748430289314,4.27267611,174.17,174.13,0.04086867]
[1748430290018,3.4153,174.19,174.13,0.04086867]
[1748430294727,3.4153,174.19,174.14,29.7]
[1748430311445,1.9215,174.26,174.14,36.37283226]
[1748430311640,1.9215,174.26,174.18,0.03854401]
[1748430311845,33.6775,174.28,174.18,0.03854401]
[1748430316646,40.35033226,174.28,174.18,0.03854401]
[1748430318856,33.6775,174.28,174.18,0.03854401]
[1748430319053,40.35033226,174.28,174.18,0.03854401]
[1748430319456,33.6775,174.28,174.18,0.03854401]
[1748430319645,40.35033226,174.28,174.18,0.03854401]
[1748430320442,33.6775,174.28,174.18,0.03854401]
[1748430320647,40.35033226,174.28,174.18,0.03854401]
[1748430324160,4.26784073,174.23,174.18,0.03854401]
[1748430329960,33.6775,174.28,174.18,0.03854401]
[1748430330163,4.26784073,174.25,174.18,0.03854401]
[1748430330761,4.26784073,174.23,174.18,0.03854401]
[1748430333865,4.26784073,174.21,174.18,0.03854401]
[1748430334862,4.26784073,174.19,174.18,0.03854401]
[1748430335161,4.26784073,174.19,174.14,30.2]
[1748430335360,0.04236684,174.2,174.14,30.2]
[1748430335361,4.26784073,174.17,174.14,30.2]
[1748430335761,4.26784073,174.17,174.1,36.48084073]
[1748430336163,0.0370886,174.15,174.12,0.03730262]
[1748430339065,4.30492933,174.15,174.12,0.03730262]
[1748430340070,0.0370886,174.15,174.12,0.03730262]
[1748430343164,0.0370886,174.15,174.02,6.674554]
[1748430343371,5.8097,174.15,174.03,30.2]
[1748430344264,0.04374482,174.11,174.07,0.04018565]
[1748430359487,6.674554,174.1,174.07,0.04018565]
[1748430361082,0.04374482,174.11,174.07,0.04018565]
[1748430361893,4.27544447,174.08,174.07,0.04018565]
[1748430363988,0.04374482,174.11,174.07,0.04018565]
[1748430374903,30.18,174.18,174.07,0.04018565]
[1748430375098,30.18,174.18,174.06,5.9288]
[1748430375901,0.03592464,174.14,174.1,0.04233463]
[1748430381702,29.92,174.21,174.1,0.04233463]
[1748430381911,29.92,174.21,174.1,6.67955462]
[1748430382515,29.92,174.24,174.1,6.67955462]
[1748430382807,29.92,174.24,174.15,0.03853965]
[1748430383006,29.92,174.24,174.15,29.95853965]
[1748430383404,29.92,174.24,174.16,4.0395]
[1748430383606,29.92,174.24,174.16,6.0614]
[1748430394216,36.59955462,174.24,174.15,29.95853965]
[1748430395918,31.936,174.27,174.15,29.95853965]
[1748430396121,31.936,174.27,174.19,0.03635709]
[1748430399814,6.67955462,174.26,174.19,0.03635709]
[1748430404030,38.61555462,174.27,174.19,0.03635709]
[1748430405224,31.936,174.27,174.19,0.03635709]
[1748430406032,29.9,174.27,174.19,0.03635709]
[1748430410429,36.57955462,174.27,174.19,0.03635709]
[1748430410626,38.56575462,174.27,174.19,0.03635709]
[1748430415137,31.8862,174.27,174.19,0.03635709]
[1748430415337,38.56575462,174.27,174.19,0.03635709]
[1748430418742,31.8862,174.27,174.19,0.03635709]
[1748430418947,38.56575462,174.27,174.19,0.03635709]
[1748430419145,31.8862,174.27,174.19,0.03635709]
[1748430419345,38.56575462,174.27,174.19,0.03635709]
[1748430420145,4.26842008,174.22,174.19,0.03635709]
[1748430420548,4.26842008,174.2,174.19,0.03635709]
[1748430421542,4.26842008,174.2,174.12,10.19100099]
[1748430421743,4.26842008,174.17,174.11,30.16]
[1748430422548,0.03635709,174.16,174.12,0.04061159]
[1748430441264,6.67292401,174.15,174.12,0.04061159]
[1748430441469,36.47292401,174.15,174.06,29.8]
[1748430442466,0.04084191,174.12,174.09,0.03703423]
[1748430503914,4.27381167,174.11,174.09,0.03703423]
[1748430515922,4.31465358,174.12,174.09,0.03703423]
[1748430525032,4.27381167,174.11,174.09,0.03703423]
[1748430531630,0.04084191,174.12,174.09,0.03703423]
[1748430531835,4.27381167,174.1,174.09,0.03703423]
[1748430532440,4.27381167,174.11,174.09,0.03703423]
[1748430543654,0.04084191,174.12,174.09,0.03703423]
[1748430543857,4.31465358,174.12,174.09,0.03703423]
[1748430548152,0.04084191,174.12,174.09,0.03703423]
[1748430548357,4.27381167,174.11,174.09,0.03703423]
[1748430557962,0.04084191,174.12,174.09,0.03703423]
[1748430560966,496.04,174.2,174.11,4.27381167]
[1748430561167,4.27381167,174.19,174.11,4.27381167]
[1748430562066,0.03612677,174.17,174.13,0.0394605]
[1748430573072,4.30993844,174.17,174.13,0.0394605]
[1748430585785,0.03612677,174.17,174.13,0.0394605]
[1748430595684,0.03612677,174.17,174.14,4.27381167]
[1748430600186,0.03612677,174.17,174.13,4.31327217]
[1748430600790,0.03612677,174.17,174.13,0.0394605]
[1748430601698,0.03612677,174.17,174.13,4.31327217]
[1748430602299,0.03612677,174.17,174.15,4.27381167]
[1748430606510,0.03612677,174.17,174.14,29.06]
[1748430613313,0.03612677,174.17,174.14,31.082]
[1748430615703,4.27381167,174.22,174.15,1.8908]
[1748430616714,4.27381167,174.22,174.17,0.04242989]
[1748430620214,4.27381167,174.2,174.17,0.04242989]
[1748430620916,29.06,174.23,174.17,0.04242989]
[1748430620917,4.27381167,174.18,174.17,0.04242989]
[1748430637529,4.27381167,174.19,174.17,0.04242989]
[1748430643239,4.27381167,174.18,174.17,0.04242989]
[1748430646838,29.02,174.21,174.17,0.04242989]
[1748430647038,4.27381167,174.19,174.17,0.04242989]
[1748430647648,4.27381167,174.2,174.17,0.04242989]
[1748430649145,29.02,174.21,174.17,0.04242989]
[1748430649347,4.27381167,174.2,174.17,0.04242989]
[1748430651345,4.27381167,174.22,174.17,0.04242989]
[1748430651743,5.8508,174.27,174.17,0.04242989]
[1748430651941,4.27381167,174.23,174.17,0.04242989]
[1748430655845,28.98,174.26,174.17,0.04242989]
[1748430656045,4.27381167,174.23,174.17,0.04242989]
[1748430657147,4.27381167,174.21,174.17,0.04242989]
[1748430657450,4.27381167,174.19,174.17,0.04242989]
[1748430661542,4.27381167,174.19,174.08,32.9298]
[1748430661543,10.01381167,174.19,174.08,32.9298]
[1748430661744,4.27381167,174.11,174.08,28.98]
[1748430661944,4.27381167,174.11,174.05,28.98]
[1748430662549,0.04116687,174.1,174.06,0.03915981]
[1748430664548,4.27381167,174.09,174.06,0.03915981]
[1748430678368,4.27381167,174.07,174.0,2.063]
[1748430678561,4.27381167,174.02,173.98,29.0]
[1748430679463,4.31684835,174.02,173.98,29.0382189]
[1748430679965,0.04303668,174.02,173.98,29.0382189]
[1748430710788,4.27751394,174.01,173.98,29.0382189]
[1748430711182,4.27751394,174.01,173.98,0.0382189]
[1748430712579,4.27751394,173.99,173.98,0.0382189]
[1748430721094,29.00303668,174.02,173.98,0.0382189]
[1748430721594,4.27751394,174.01,173.98,0.0382189]
[1748430726297,29.00303668,174.02,173.98,0.0382189]
[1748430726498,33.28055062,174.02,173.98,0.0382189]
[1748430730309,29.00303668,174.02,173.98,0.0382189]
[1748430730503,4.27751394,174.01,173.98,0.0382189]
[1748430738412,4.27751394,173.99,173.98,0.0382189]
[1748430744911,29.00303668,174.02,173.98,0.0382189]
[1748430745122,4.27751394,173.99,173.98,0.0382189]
[1748430749224,29.00303668,174.02,173.98,0.0382189]
[1748430749530,0.04303668,174.02,173.98,0.0382189]
[1748430752026,0.04303668,174.02,173.98,0.0382189]
[1748430769936,4.27751394,174.01,173.98,0.0382189]
[1748430774141,4.27751394,174.01,173.92,28.94]
[1748430774142,4.27751394,173.99,173.92,28.94]
[1748430775035,0.04119192,173.97,173.94,0.04206196]
[1748430794152,0.04119192,173.97,173.95,4.27751394]
[1748430805055,0.04119192,173.97,173.94,4.3195759]
[1748430806054,0.04119192,173.97,173.94,0.04206196]
[1748430831497,4.27751394,173.96,173.94,0.04206196]
[1748430834097,4.27751394,173.96,173.83,5.9942]
[1748430834391,4.27751394,173.94,173.87,4.27751394]
[1748430834997,0.04358837,173.92,173.89,0.04122428]
[1748430843602,0.04358837,173.92,173.91,4.27751394]
[1748430843809,28.9,173.98,173.91,4.27751394]
[1748430844002,28.9,173.98,173.93,4.27751394]
[1748430845003,0.04387128,173.97,173.94,0.04220555]
[1748430845599,4.27751394,173.96,173.94,0.04220555]
[1748430848010,0.04387128,173.97,173.94,0.04220555]
[1748430867913,4.28157838,173.96,173.94,0.04220555]
[1748430875420,0.04387128,173.97,173.94,0.04220555]
[1748430875626,4.28157838,173.96,173.94,0.04220555]
[1748430893036,33.12157838,173.96,173.94,0.04220555]
[1748430895435,0.04387128,173.97,173.94,0.04220555]
[1748430900648,0.04387128,173.97,173.94,4.32378393]
[1748430900943,28.82,174.02,173.96,4.28157838]
[1748430901245,4.28157838,174.03,173.97,2.0043]
[1748430901644,4.28157838,174.01,173.97,2.0043]
[1748430902039,4.32303605,174.01,173.97,2.04234438]
[1748430904148,0.04145767,174.01,173.97,6.32392276]
[1748430912654,28.8,174.07,173.99,4.28157838]
[1748430912959,28.8,174.07,174.0,4.0589]
[1748430913159,28.8,174.07,174.01,4.28157838]
[1748430913555,0.03295324,174.06,174.02,0.04086768]
[1748430919658,4.31453162,174.06,174.02,0.04086768]
[1748430931171,4.28157838,174.04,174.02,0.04086768]
[1748430936673,33.04157838,174.04,174.02,0.04086768]
[1748430938275,33.04157838,174.04,173.95,1.8938]
[1748430938478,4.28157838,174.0,173.95,1.8938]
[1748430939180,0.04005,173.99,173.96,0.03811705]
[1748430939772,4.28157838,173.98,173.96,0.03811705]
[1748430943286,4.32162838,173.99,173.96,0.03811705]
[1748430948880,0.04005,173.99,173.96,0.03811705]
[1748430969311,4.28157838,173.98,173.96,0.03811705]
[1748430973417,4.32162838,173.99,173.96,0.03811705]
[1748430980124,0.04005,173.99,173.96,0.03811705]
[1748430985434,4.32162838,173.99,173.96,0.03811705]
[1748430985626,4.28157838,173.97,173.96,0.03811705]
[1748430991232,4.28157838,173.98,173.96,0.03811705]
[1748430993748,28.78005,173.99,173.96,0.03811705]
[1748430993945,4.28157838,173.97,173.96,0.03811705]
[1748431000350,0.04005,173.99,173.96,0.03811705]
[1748431001040,0.04005,173.99,173.97,4.28157838]
[1748431004446,0.04005,173.99,173.96,2.05721705]
[1748431004846,0.04005,173.99,173.96,6.33879543]
[1748431008054,4.28157838,174.06,173.98,4.28157838]
[1748431008356,4.28157838,174.07,174.0,4.28157838]
[1748431009059,0.03377092,174.05,174.02,0.04356504]
[1748431011657,28.72,174.11,174.02,0.04356504]
[1748431011658,28.72,174.14,174.03,4.28157838]
[1748431011850,4.28157838,174.13,174.04,4.0546]
[1748431012051,4.28157838,174.13,174.06,4.28157838]
[1748431012655,4.28157838,174.13,174.08,0.03724477]
[1748431013852,4.28157838,174.11,174.08,0.03724477]
[1748431014057,28.72,174.14,174.08,0.03724477]
[1748431027169,498.389,174.16,174.08,0.03724477]
[1748431027467,29.58,174.15,174.08,0.03724477]
[1748431027968,498.389,174.16,174.08,0.03724477]
[1748431028270,29.58,174.15,174.08,0.03724477]
[1748431028956,6.67831034,174.1,174.01,1.9543]
[1748431029158,6.67831034,174.1,173.97,29.58]
[1748431029159,36.25831034,174.1,173.97,29.58]
[1748431029357,6.67831034,174.07,173.96,3.894]
[1748431029564,29.58,174.06,173.96,3.894]
[1748431029966,0.03724477,174.03,173.99,0.0366411]
[1748431030360,0.03724477,174.03,173.99,29.6166411]
[1748431040868,0.03724477,174.03,173.99,0.0366411]
[1748431045478,6.67831034,174.02,173.99,0.0366411]
[1748431045676,29.58,174.01,173.89,29.58]
[1748431045869,6.67831034,173.98,173.89,29.58]
[1748431046672,0.04331368,173.95,173.92,0.03904403]
[1748431062890,6.72162402,173.95,173.86,33.403]
[1748431063886,6.72162402,173.95,173.89,0.04353319]
[1748431066987,6.67831034,173.92,173.89,0.04353319]
[1748431067192,29.38,173.91,173.89,0.04353319]
[1748431072999,29.38,173.91,173.82,3.87]
[1748431073796,6.67831034,173.89,173.82,3.87]
[1748431073993,0.0419644,173.87,173.84,0.03696775]
[1748431077610,29.4219644,173.87,173.84,0.03696775]
[1748431097911,4.28572287,173.85,173.84,0.03696775]
[1748431109824,29.4219644,173.87,173.84,0.03696775]
[1748431110026,4.28572287,173.85,173.84,0.03696775]
[1748431114030,29.4219644,173.87,173.84,0.03696775]
[1748431114236,4.28572287,173.85,173.84,0.03696775]
[1748431118835,4.28572287,173.85,173.79,2.0059]
[1748431118836,4.28572287,173.85,173.77,31.4246]
[1748431119134,4.28572287,173.8,173.77,2.0446]
[1748431119827,4.32811125,173.8,173.77,2.08775216]
[1748431122237,4.28572287,173.78,173.77,2.08775216]
[1748431129540,4.28572287,173.78,173.77,0.04315216]
[1748431131242,0.04238838,173.8,173.77,0.04315216]
[1748431131539,4.28572287,173.79,173.77,0.04315216]
[1748431142442,0.04238838,173.8,173.77,0.04315216]
[1748431142645,4.28572287,173.86,173.78,4.28572287]
[1748431143546,0.04135591,173.84,173.8,0.03683165]
[1748431144447,4.32707878,173.84,173.8,0.03683165]
[1748431164865,0.04135591,173.84,173.8,0.03683165]
[1748431165165,4.32707878,173.84,173.8,0.03683165]
[1748431170968,0.04135591,173.84,173.8,0.03683165]
[1748431171373,4.32707878,173.84,173.8,0.03683165]
[1748431174978,4.28572287,173.82,173.8,0.03683165]
[1748431178769,33.10572287,173.82,173.74,1.9126]
[1748431178969,4.28572287,173.78,173.74,1.9126]
[1748431179879,4.32486425,173.78,173.74,1.95213265]
[1748431182470,4.32486425,173.78,173.74,0.03953265]
[1748431182782,4.28572287,173.76,173.74,0.03953265]
[1748431187888,28.85914138,173.78,173.74,0.03953265]
[1748431188091,4.28572287,173.77,173.74,0.03953265]
[1748431190495,0.03914138,173.78,173.74,0.03953265]
[1748431192696,4.32486425,173.78,173.74,0.03953265]
[1748431195899,4.28572287,173.77,173.74,0.03953265]
[1748431203591,4.28572287,173.75,173.74,0.03953265]
[1748431206601,4.28572287,173.77,173.74,0.03953265]
[1748431207499,4.28572287,173.75,173.74,0.03953265]
[1748431214199,0.03914138,173.78,173.74,0.03953265]
[1748431214407,4.28572287,173.77,173.74,0.03953265]
[1748431218812,0.03914138,173.78,173.74,0.03953265]
[1748431219197,4.32486425,173.78,173.74,0.03953265]
[1748431223906,4.28572287,173.76,173.74,0.03953265]
[1748431225703,0.03914138,173.78,173.74,0.03953265]
[1748431225999,4.28572287,173.75,173.74,0.03953265]
[1748431226602,4.28572287,173.75,173.68,2.0407]
[1748431226808,4.28572287,173.71,173.68,2.0407]
[1748431227609,4.32819974,173.71,173.68,2.07978811]
[1748431228209,0.04247687,173.71,173.68,2.07978811]
[1748431229912,4.32819974,173.71,173.68,0.03908811]
[1748431230410,4.28572287,173.69,173.68,0.03908811]
[1748431233613,4.28572287,173.7,173.68,0.03908811]
[1748431234618,0.04247687,173.71,173.68,0.03908811]
[1748431235010,4.28572287,173.76,173.69,33.10572287]
[1748431235918,0.04003861,173.74,173.69,33.10572287]
[1748431238121,0.04003861,173.74,173.69,28.82]
[1748431238611,0.04003861,173.74,173.68,6.06378811]
[1748431241926,6.70406946,173.73,173.68,0.03908811]
[1748431261450,0.04003861,173.74,173.68,0.03908811]
[1748431266054,0.04003861,173.74,173.68,2.04568811]
[1748431267951,0.04003861,173.74,173.68,0.03908811]
[1748431268148,6.70406946,173.72,173.68,0.03908811]
[1748431268348,28.8,173.71,173.68,0.03908811]
[1748431272849,6.70406946,173.69,173.61,5.9574]
[1748431273863,0.03885595,173.67,173.63,0.04176696]
[1748431277261,0.03885595,173.67,173.63,0.04176696]
[1748431297980,4.2955748,173.65,173.63,0.04176696]
[1748431299083,4.2955748,173.66,173.63,0.04176696]
[1748431303680,0.03885595,173.67,173.63,0.04176696]
[1748431303877,4.2955748,173.66,173.63,0.04176696]
[1748431311684,0.03885595,173.67,173.63,0.04176696]
[1748431338705,0.03885595,173.67,173.64,4.2955748]
[1748431340616,28.76,173.74,173.66,4.2955748]
[1748431340803,4.2955748,173.75,173.68,4.2955748]
[1748431341010,4.2955748,173.75,173.68,33.0555748]
[1748431341715,0.04181813,173.73,173.7,0.04390251]
[1748431348317,0.04181813,173.73,173.7,4.33947731]
[1748431348919,0.04181813,173.73,173.7,6.33557731]
[1748431355219,0.04181813,173.73,173.72,4.2955748]
[1748431355425,4.2955748,173.79,173.72,33.0555748]
[1748431356430,0.04270392,173.77,173.74,0.04152494]
[1748431357218,4.33827872,173.77,173.74,0.04152494]
[1748431358626,4.2955748,173.75,173.74,0.04152494]
[1748431358827,4.2955748,173.75,173.69,28.76]
[1748431359025,4.2955748,173.73,173.69,28.76]
[1748431359336,4.2955748,173.73,173.66,33.0355748]
[1748431359828,4.2955748,173.73,173.68,0.04320852]
[1748431360018,0.03648549,173.71,173.68,0.04320852]
[1748431360219,0.0434195,173.71,173.68,0.04320852]
[1748431381941,4.33727716,173.71,173.68,0.04320852]
[1748431382240,0.0434195,173.71,173.68,0.04320852]
[1748431382433,0.0434195,173.71,173.68,4.33706618]
[1748431391446,0.0434195,173.71,173.68,0.04320852]
[1748431393951,0.0434195,173.71,173.68,28.76320852]
[1748431397148,0.0434195,173.71,173.68,33.05706618]
[1748431403452,0.0434195,173.71,173.68,28.76320852]
[1748431422267,0.0434195,173.71,173.68,0.04320852]
[1748431428277,0.0434195,173.71,173.68,4.33706618]
[1748431428466,0.0434195,173.71,173.68,0.04320852]
[1748431428666,0.0434195,173.71,173.68,4.33706618]
[1748431430668,0.0434195,173.71,173.68,0.04320852]
[1748431434675,0.0434195,173.71,173.68,28.72320852]
[1748431441379,4.33727716,173.71,173.68,0.04320852]
[1748431445679,0.0434195,173.71,173.68,0.04320852]
[1748431446472,0.0434195,173.71,173.68,28.72320852]
[1748431447191,4.29385766,173.77,173.69,4.29385766]
[1748431447376,4.29385766,173.77,173.71,4.29385766]
[1748431448186,0.04314481,173.76,173.72,0.0399407]
[1748431450385,4.29385766,173.75,173.72,0.0399407]
[1748431455881,0.04314481,173.76,173.72,0.0399407]
[1748431455882,4.29385766,173.73,173.72,0.0399407]
[1748431456991,4.29385766,173.73,173.65,32.95385766]
[1748431457199,4.29385766,173.71,173.65,32.95385766]
[1748431458088,0.03889179,173.7,173.66,0.04162106]
[1748431475700,4.29385766,173.69,173.66,0.04162106]
[1748431480202,4.29385766,173.67,173.66,0.04162106]
[1748431485513,0.03889179,173.7,173.66,0.04162106]
[1748431485514,4.33274945,173.7,173.66,0.04162106]
[1748431500718,4.29385766,173.68,173.66,0.04162106]
[1748431508523,4.33274945,173.7,173.66,0.04162106]
[1748431514135,0.03889179,173.7,173.66,0.04162106]
[1748431521839,4.29385766,173.76,173.68,4.29385766]
[1748431522949,0.03675558,173.74,173.7,0.04276872]
[1748431524041,0.03675558,173.74,173.7,4.33662638]
[1748431524438,0.03675558,173.74,173.7,32.95662638]
[1748431525748,0.03675558,173.74,173.71,2.0638]
[1748431526246,0.03675558,173.74,173.72,4.29385766]
[1748431532550,0.03675558,173.74,173.71,10.34345766]
[1748431535148,0.03675558,173.74,173.71,6.0496]
[1748431538946,0.03675558,173.74,173.71,10.34345766]
[1748431545756,0.03675558,173.74,173.71,6.0496]
[1748431555358,0.03675558,173.74,173.71,10.34345766]
[1748431561254,0.03675558,173.74,173.73,4.29385766]
[1748431564663,0.03675558,173.74,173.71,6.0496]
[1748431564861,0.03675558,173.74,173.71,8.39685766]
[1748431568159,0.03675558,173.74,173.73,4.29385766]
[1748431573674,0.03675558,173.74,173.73,32.85385766]
[1748431583474,0.03675558,173.74,173.73,28.56]
[1748431598084,0.03675558,173.74,173.73,32.85385766]
[1748431602685,0.03675558,173.74,173.73,28.56]
[1748431607392,0.03675558,173.74,173.71,36.91685766]
[1748431608191,0.03675558,173.74,173.73,4.29385766]
[1748431621195,0.03675558,173.74,173.71,32.623]
[1748431621400,0.03675558,173.74,173.72,4.29385766]
[1748431630399,0.03675558,173.74,173.71,28.52]
[1748431633806,0.03675558,173.74,173.7,0.04276872]
[1748431640813,4.29385766,173.73,173.7,0.04276872]
[1748431651407,0.03675558,173.74,173.7,0.04276872]
[1748431652011,0.03675558,173.74,173.71,4.29385766]
[1748431652212,0.03675558,173.74,173.72,28.5]
[1748431652918,0.03675558,173.74,173.73,4.29385766]
[1748431653915,0.03675558,173.74,173.72,28.5]
[1748431660916,0.03675558,173.74,173.72,32.79385766]
[1748431664913,4.29385766,173.8,173.72,32.79385766]
[1748431666023,0.04421765,173.78,173.74,0.0374421]
[1748431671631,0.04421765,173.78,173.75,2.27728264]
[1748431671825,0.04421765,173.78,173.76,2.27728264]
[1748431672026,0.04421765,173.78,173.77,2.27728228]
[1748431672630,0.04421765,173.78,173.77,2.27724401]
[1748431673830,0.04421765,173.78,173.77,2.27709517]
[1748431674533,0.04421765,173.78,173.74,0.0374421]
[1748431674731,0.04421765,173.78,173.75,2.27710412]
[1748431674934,0.04421765,173.78,173.76,2.27710412]
[1748431675130,0.04421765,173.78,173.77,2.27710412]
[1748431675527,0.04421765,173.78,173.74,0.0374421]
[1748431720572,0.04421765,173.78,173.74,4.32608319]
[1748431721282,0.04421765,173.78,173.74,0.0374421]
[1748431733596,4.33285874,173.78,173.74,0.0374421]
[1748431733991,4.28864109,173.76,173.74,0.0374421]
[1748431734301,4.28864109,173.72,173.69,28.42]
[1748431734498,4.28864109,173.7,173.66,28.42]
[1748431735199,4.32838082,173.7,173.66,28.45963566]
[1748431740602,0.03973973,173.7,173.66,28.45963566]
[1748431740805,0.03973973,173.7,173.66,32.74827675]
[1748431744094,0.03973973,173.7,173.66,28.45963566]
[1748431744295,4.32838082,173.7,173.66,28.45963566]
[1748431763309,4.28864109,173.68,173.66,28.45963566]
[1748431768015,4.28864109,173.68,173.66,0.03963566]
[1748431777124,0.03973973,173.7,173.66,0.03963566]
[1748431777318,4.28864109,173.67,173.66,0.03963566]
[1748431781927,0.03973973,173.7,173.66,0.03963566]
[1748431782126,4.28864109,173.67,173.66,0.03963566]
[1748431796136,4.28864109,173.68,173.66,0.03963566]
[1748431806351,0.03973973,173.7,173.66,0.03963566]
[1748431807536,0.03973973,173.7,173.67,28.38]
[1748431814039,0.03973973,173.7,173.67,30.3188]
[1748431814833,0.03973973,173.7,173.67,32.3179]
[1748431816939,0.03973973,173.7,173.68,4.28864109]
[1748431817138,4.28864109,173.75,173.68,4.28864109]
[1748431817336,28.38,173.77,173.7,4.28864109]
[1748431817544,4.28864109,173.77,173.7,4.28864109]
[1748431817747,4.28864109,173.73,173.67,32.3179]
[1748431818143,48.57023296,173.8,173.68,0.04018841]